bitfinex-derivatives/quotes_SOLF0:USTF0_20250731
["timestamp","ask_amount","ask_price","bid_price","bid_amount"]
[1754003086582,5.7614,173.59,173.57,3.11]
[1754003086781,3.18,173.62,173.55,3.61878461]
[1754003086982,6.79878461,173.65,173.58,3.11]
[1754003087288,6.79878461,173.65,173.6,3.11]
[1754003087289,5.7602,173.63,173.6,3.11]
[1754003087875,5.7604,173.62,173.61,3.11]
[1754003089089,3.18,173.62,173.57,3.11]
[1754003089287,3.18,173.6,173.57,3.11]
[1754003089481,3.18,173.59,173.57,3.11]
[1754003089688,8.9416,173.58,173.57,3.11]
[1754003090383,3.61878461,173.59,173.55,3.11]
[1754003090590,3.18,173.57,173.55,3.11]
[1754003090782,6.79878461,173.57,173.51,3.11]
[1754003090982,5.7629,173.55,173.51,3.11]
[1754003091385,6.79878461,173.57,173.51,3.11]
[1754003091589,5.7628,173.55,173.51,3.11]
[1754003092395,6.79878461,173.57,173.51,3.11]
[1754003092898,5.7628,173.55,173.51,3.11]
[1754003093392,6.79878461,173.57,173.51,3.11]
[1754003093695,3.61878461,173.57,173.51,3.11]
[1754003093897,3.18,173.55,173.51,3.11]
[1754003094290,5.7631,173.54,173.51,3.11]
[1754003094597,3.18,173.55,173.51,3.11]
[1754003094799,5.7633,173.53,173.51,3.11]
[1754003094997,3.18,173.55,173.51,3.11]
[1754003095302,3.61878461,173.57,173.49,3.61878461]
[1754003095303,5.7636,173.52,173.49,3.61878461]
[1754003095800,5.7636,173.52,173.47,5.7652]
[1754003096004,5.7636,173.52,173.49,3.11]
[1754003096194,3.18,173.54,173.49,3.11]
[1754003096495,3.61878461,173.55,173.49,3.11]
[1754003096693,3.18,173.53,173.49,3.11]
[1754003096890,3.61878461,173.55,173.46,110.83878461]
[1754003097094,3.18,173.52,173.5,3.11]
[1754003097496,5.7641,173.51,173.46,112.9853]
[1754003097698,5.7641,173.51,173.47,3.61878461]
[1754003098006,3.18,173.54,173.48,3.11]
[1754003098692,5.7646,173.49,173.48,3.11]
[1754003099197,5.7644,173.5,173.48,3.11]
[1754003099399,3.3,173.54,173.48,3.11]
[1754003100605,3.61878461,173.57,173.49,3.61878461]
[1754003100917,3.3,173.61,173.54,3.24]
[1754003101406,3.61878461,173.6,173.54,3.24]
[1754003101606,3.3,173.58,173.54,3.24]
[1754003101811,5.7621,173.57,173.55,3.24]
[1754003102204,3.61878461,173.61,173.53,3.61878461]
[1754003102402,9.0613,173.59,173.58,3.24]
[1754003102605,4.83100704,173.62,173.56,3.24]
[1754003102804,4.83100704,173.62,173.53,3.61878461]
[1754003102805,5.7619,173.58,173.53,3.61878461]
[1754003103005,3.3,173.6,173.54,3.24]
[1754003103715,3.3,173.59,173.54,3.24]
[1754003103914,3.3,173.57,173.52,3.24]
[1754003104115,9.0629,173.55,173.53,3.24]
[1754003104317,9.0629,173.55,173.51,3.61878461]
[1754003104517,9.0629,173.55,173.54,3.24]
[1754003105221,3.3,173.52,173.5,3.24]
[1754003105407,3.3,173.51,173.5,3.24]
[1754003105606,3.3,173.51,173.45,3.61878461]
[1754003105811,3.3,173.5,173.49,3.24]
[1754003106504,9.0644,173.5,173.49,3.24]
[1754003106914,3.3,173.51,173.45,3.24]
[1754003107112,5.7643,173.5,173.45,3.24]
[1754003107305,9.0643,173.5,173.45,3.24]
[1754003107512,3.3,173.5,173.45,3.24]
[1754003107713,5.7648,173.49,173.45,3.24]
[1754003108120,3.3,173.48,173.46,3.24]
[1754003108516,5.7655,173.47,173.46,3.24]
[1754003108718,3.3,173.48,173.47,3.24]
[1754003109119,5.7652,173.48,173.44,3.24]
[1754003109515,3.3,173.5,173.44,3.24]
[1754003111023,3.3,173.53,173.47,3.24]
[1754003111917,5.7644,173.5,173.47,3.24]
[1754003112124,3.3,173.51,173.47,3.24]
[1754003112919,3.61878461,173.54,173.46,3.61878461]
[1754003113119,3.3,173.5,173.47,3.24]
[1754003113325,3.3,173.48,173.43,110.73878461]
[1754003113521,3.61878461,173.5,173.46,3.24]
[1754003113717,3.3,173.47,173.46,3.24]
[1754003113925,3.3,173.47,173.44,3.24]
[1754003114124,3.61878461,173.5,173.42,3.61878461]
[1754003114325,3.3,173.49,173.43,3.24]
[1754003114623,3.3,173.51,173.46,3.61878461]
[1754003114827,3.3,173.53,173.47,3.24]
[1754003115025,5.7642,173.5,173.47,3.24]
[1754003116724,5.7645,173.49,173.47,3.24]
[1754003117026,3.3,173.53,173.47,3.24]
[1754003117328,5.7645,173.49,173.47,3.24]
[1754003118623,5.7645,173.49,173.46,3.61878461]
[1754003118828,5.7656,173.46,173.44,3.61878461]
[1754003119026,3.3,173.49,173.45,3.24]
[1754003119234,6.91878461,173.52,173.46,3.24]
[1754003119428,5.7652,173.47,173.46,3.24]
[1754003119629,3.3,173.52,173.46,6.85878461]
[1754003119829,3.61878461,173.54,173.47,3.24]
[1754003120031,3.3,173.53,173.47,3.24]
[1754003120234,3.61878461,173.56,173.49,3.24]
[1754003120235,3.3,173.55,173.49,3.24]
[1754003120628,5.7642,173.5,173.49,3.24]
[1754003121837,5.764,173.51,173.49,3.24]
[1754003122033,3.61878461,173.56,173.49,3.24]
[1754003122338,3.3,173.55,173.49,3.24]
[1754003122637,5.7638,173.52,173.49,3.24]
[1754003123135,3.3,173.55,173.49,3.24]
[1754003123136,5.7639,173.51,173.49,3.24]
[1754003124035,5.7636,173.52,173.49,3.24]
[1754003124337,5.7636,173.52,173.5,3.61878461]
[1754003124632,3.3,173.57,173.51,3.24]
[1754003125138,5.7627,173.55,173.53,3.24]
[1754003125338,3.3,173.57,173.53,3.24]
[1754003125836,8.44381637,173.6,173.53,3.24]
[1754003125837,3.3,173.56,173.53,3.24]
[1754003126047,3.3,173.56,173.54,3.24]
[1754003126231,9.0622,173.56,173.55,3.24]
[1754003127740,3.3,173.59,173.54,3.61878461]
[1754003127932,4.82503176,173.63,173.58,3.24]
[1754003128238,8.91247717,173.62,173.58,3.24]
[1754003128438,7.12744541,173.61,173.58,3.61878461]
[1754003128733,3.04,173.61,173.59,3.27]
[1754003129129,5.7609,173.6,173.59,3.27]
[1754003129432,3.04,173.61,173.59,3.27]
[1754003129631,8.8004,173.62,173.59,3.27]
[1754003129834,4.09048389,173.61,173.59,3.27]
[1754003130135,5.76,173.63,173.6,3.61878461]
[1754003130340,3.04,173.67,173.62,3.61878461]
[1754003130534,5.7612,173.6,173.56,3.61878461]
[1754003130733,3.04,173.61,173.56,3.61878461]
[1754003130929,3.04,173.6,173.58,3.27]
[1754003131137,8.8011,173.6,173.58,3.27]
[1754003132337,8.8011,173.6,173.59,3.27]
[1754003132636,3.04,173.61,173.54,3.61878461]
[1754003132834,3.04,173.59,173.55,3.27]
[1754003133035,3.04,173.57,173.54,3.27]
[1754003133235,3.04,173.55,173.54,3.27]
[1754003133544,3.04,173.58,173.52,3.61878461]
[1754003133741,5.7621,173.57,173.53,3.27]
[1754003134341,3.04,173.59,173.54,3.61878461]
[1754003134342,5.7617,173.58,173.54,3.61878461]
[1754003134635,3.61878461,173.61,173.55,3.27]
[1754003134636,6.65878461,173.61,173.55,3.27]
[1754003134839,3.04,173.59,173.55,3.27]
[1754003135138,5.7621,173.57,173.54,3.61878461]
[1754003135327,5.7621,173.57,173.56,3.27]
[1754003135533,3.04,173.59,173.56,3.27]
[1754003135732,3.04,173.59,173.57,3.27]
[1754003135934,3.04,173.58,173.57,3.27]
[1754003136133,3.04,173.57,173.53,3.27]
[1754003136437,3.04,173.61,173.54,3.61878461]
[1754003136634,5.7615,173.59,173.55,3.27]
[1754003136835,3.04,173.6,173.55,3.27]
[1754003137335,5.7616,173.58,173.55,3.27]
[1754003137734,3.04,173.59,173.55,3.27]
[1754003137937,5.7618,173.58,173.55,3.27]
[1754003138133,3.04,173.6,173.53,3.27]
[1754003138334,3.04,173.58,173.53,3.27]
[1754003138640,3.04,173.57,173.53,3.27]
[1754003139041,3.04,173.56,173.54,3.27]
[1754003139245,3.04,173.55,173.54,3.27]
[1754003139739,5.7625,173.55,173.54,3.27]
[1754003140039,3.04,173.57,173.51,3.27]
[1754003140237,5.7624,173.56,173.52,3.61878461]
[1754003140431,3.04,173.57,173.53,3.27]
[1754003141037,5.7626,173.55,173.53,3.27]
[1754003142132,5.7623,173.56,173.53,3.27]
[1754003142333,3.04,173.59,173.52,3.27]
[1754003142536,3.61878461,173.62,173.55,3.61878461]
[1754003142734,5.7615,173.59,173.56,3.27]
[1754003143338,8.801,173.6,173.56,3.27]
[1754003143542,5.761,173.6,173.56,3.27]
[1754003143839,3.04,173.62,173.56,3.27]
[1754003144043,3.04,173.6,173.56,3.27]
[1754003144544,3.04,173.63,173.56,3.27]
[1754003144745,3.04,173.63,173.57,3.61878461]
[1754003144933,5.7607,173.61,173.57,9.38048461]
[1754003145136,5.7607,173.61,173.58,3.27]
[1754003147645,5.761,173.6,173.58,3.27]
[1754003148049,3.04,173.63,173.58,3.27]
[1754003148346,3.04,173.61,173.57,3.61878461]
[1754003148548,3.04,173.61,173.57,3.27]
[1754003148945,5.7613,173.59,173.57,3.27]
[1754003149150,8.8013,173.59,173.58,3.27]
[1754003149345,3.04,173.61,173.55,3.61878461]
[1754003149648,3.04,173.61,173.59,3.27]
[1754003149649,5.761,173.6,173.59,3.27]
[1754003150846,8.801,173.6,173.59,3.27]
[1754003152052,5.761,173.6,173.59,3.27]
[1754003152651,5.7607,173.61,173.59,3.27]
[1754003152853,3.04,173.61,173.6,3.27]
[1754003153554,8.8005,173.61,173.6,3.27]
[1754003155352,5.7612,173.59,173.58,3.27]
[1754003155552,3.04,173.59,173.53,3.27]
[1754003155756,3.61878461,173.56,173.53,3.27]
[1754003155955,3.61878461,173.56,173.51,3.27]
[1754003155956,3.04,173.55,173.51,3.27]
[1754003156154,3.04,173.55,173.52,3.27]
[1754003156351,5.7625,173.55,173.53,3.27]
[1754003156559,8.8025,173.55,173.5,5.7641]
[1754003156860,8.8025,173.55,173.54,3.27]
[1754003157249,5.7625,173.55,173.54,3.27]
[1754003158256,3.22,173.55,173.5,3.17]
[1754003158659,3.22,173.55,173.48,3.17]
[1754003158958,5.7638,173.52,173.49,3.17]
[1754003159457,8.9833,173.53,173.51,3.17]
[1754003159656,8.9833,173.53,173.52,3.17]
[1754003160357,3.22,173.56,173.51,3.17]
[1754003160959,3.61878461,173.62,173.54,3.17]
[1754003161149,3.22,173.61,173.54,3.17]
[1754003161758,3.22,173.61,173.53,3.61878461]
[1754003161950,3.22,173.61,173.46,437.701734]
[1754003161951,5.7606,173.61,173.58,3.17]
[1754003162556,3.22,173.63,173.59,3.17]
[1754003163156,8.9809,173.6,173.59,3.17]
[1754003163655,5.7625,173.55,173.54,3.17]
[1754003163855,8.9825,173.55,173.54,3.17]
[1754003164549,5.7623,173.56,173.51,5.7638]
[1754003164754,3.22,173.58,173.57,3.17]
[1754003164954,3.22,173.58,173.53,3.17]
[1754003165154,3.22,173.57,173.55,3.17]
[1754003165848,3.61878461,173.59,173.55,3.17]
[1754003166052,3.61878461,173.59,173.56,3.17]
[1754003166053,3.22,173.58,173.56,3.17]
[1754003166254,3.22,173.57,173.56,3.17]
[1754003166561,5.7621,173.57,173.56,3.17]
[1754003167155,8.9821,173.57,173.56,3.17]
[1754003167754,5.7626,173.55,173.54,3.17]
[1754003167959,3.61878461,173.55,173.51,3.17]
[1754003168262,3.22,173.53,173.51,3.17]
[1754003168854,8.9833,173.53,173.52,3.17]
[1754003169058,3.22,173.56,173.52,3.17]
[1754003170060,5.7631,173.54,173.53,3.17]
[1754003170362,6.83878461,173.57,173.51,3.17]
[1754003170656,3.22,173.55,173.49,5.7643]
[1754003170861,3.22,173.55,173.53,3.17]
[1754003171259,5.7632,173.54,173.53,3.17]
[1754003171459,8.9832,173.54,173.53,3.17]
[1754003171661,3.22,173.54,173.51,3.17]
[1754003171957,3.22,173.53,173.47,3.17]
[1754003172154,3.22,173.53,173.47,8.935]
[1754003172354,3.22,173.53,173.48,3.17]
[1754003172557,3.22,173.55,173.48,3.17]
[1754003172756,3.22,173.55,173.5,3.17]
[1754003172957,3.22,173.56,173.5,3.17]
[1754003173461,5.360884,173.57,173.5,3.17]
[1754003173462,3.22,173.54,173.5,3.17]
[1754003174063,5.7639,173.51,173.5,3.17]
[1754003176258,5.7643,173.5,173.46,11.126284]
[1754003176460,3.22,173.53,173.47,3.17]
[1754003176856,5.7645,173.49,173.47,3.17]
[1754003177062,5.360884,173.53,173.43,107.7]
[1754003177260,3.22,173.5,173.44,3.17]
[1754003177463,5.360884,173.51,173.44,3.17]
[1754003177766,3.22,173.48,173.44,3.17]
[1754003177964,3.22,173.48,173.41,3.17]
[1754003178559,5.360884,173.45,173.38,387.3]
[1754003178763,3.22,173.42,173.35,3.17]
[1754003179165,3.22,173.38,173.34,126.52553331]
[1754003179366,3.22,173.38,173.34,129.69553331]
[1754003179564,5.7692,173.36,173.34,3.17]
[1754003179769,3.22,173.36,173.35,3.17]
[1754003180467,8.9889,173.36,173.35,3.17]
[1754003180862,3.22,173.36,173.28,392.780884]
[1754003181068,3.22,173.36,173.34,3.17]
[1754003181263,3.22,173.38,173.3,5.360884]
[1754003181571,3.22,173.38,173.31,3.17]
[1754003181770,8.9887,173.37,173.33,3.17]
[1754003182569,8.9889,173.36,173.33,3.17]
[1754003182874,3.22,173.35,173.33,3.17]
[1754003183073,3.22,173.35,173.29,3.17]
[1754003183270,3.22,173.37,173.29,3.17]
[1754003183465,3.22,173.37,173.28,392.780884]
[1754003183466,3.22,173.37,173.32,5.7699]
[1754003183670,8.9886,173.37,173.33,3.17]
[1754003184074,5.7686,173.37,173.33,3.17]
[1754003185174,5.7686,173.37,173.33,8.9398]
[1754003185370,5.7689,173.36,173.35,3.17]
[1754003186170,3.22,173.34,173.32,3.17]
[1754003187277,8.9898,173.34,173.32,3.17]
[1754003187472,8.9898,173.34,173.33,3.17]
[1754003188475,8.9099,173.33,173.26,5.360884]
[1754003188772,3.14,173.34,173.28,3.25]
[1754003188972,3.14,173.36,173.28,8.610884]
[1754003189172,3.14,173.36,173.28,5.360884]
[1754003189477,5.7699,173.33,173.3,3.25]
[1754003189973,5.7696,173.34,173.3,3.25]
[1754003190277,5.7696,173.34,173.31,3.25]
[1754003190477,5.7692,173.35,173.31,3.25]
[1754003190677,3.14,173.38,173.32,3.25]
[1754003191076,5.360884,173.43,173.32,5.360884]
[1754003191270,3.14,173.4,173.33,3.25]
[1754003191571,8.9082,173.38,173.33,9.0198]
[1754003191778,8.9082,173.38,173.34,3.25]
[1754003192075,5.7681,173.39,173.34,3.25]
[1754003192278,3.14,173.4,173.35,3.25]
[1754003192474,5.360884,173.43,173.35,3.25]
[1754003192675,3.14,173.44,173.37,3.25]
[1754003193080,3.14,173.44,173.36,11.129484]
[1754003193081,387.42,173.48,173.38,5.360884]
[1754003193378,3.14,173.46,173.39,3.25]
[1754003194287,3.14,173.48,173.41,3.25]
[1754003194488,3.14,173.48,173.42,3.25]
[1754003194883,3.14,173.48,173.43,3.25]
[1754003195088,5.7657,173.46,173.43,3.25]
[1754003195581,3.14,173.53,173.45,3.25]
[1754003196183,5.765,173.48,173.45,3.25]
[1754003196691,5.7646,173.49,173.45,3.25]
[1754003196887,5.7646,173.49,173.46,5.360884]
[1754003197088,3.14,173.51,173.48,3.25]
[1754003197287,5.7649,173.48,173.46,5.360884]
[1754003197681,5.7649,173.48,173.44,5.7661]
[1754003197682,3.14,173.51,173.44,5.360884]
[1754003197885,5.7652,173.48,173.45,3.25]
[1754003198896,5.7646,173.49,173.45,3.25]
[1754003200291,5.7646,173.49,173.45,9.0158]
[1754003200491,5.7646,173.49,173.46,3.25]
[1754003200891,3.14,173.57,173.48,5.360884]
[1754003201092,3.14,173.57,173.49,3.25]
[1754003201492,5.7633,173.53,173.49,3.25]
[1754003201994,5.7631,173.54,173.51,3.25]
[1754003202496,3.14,173.56,173.51,3.25]
[1754003203297,5.7631,173.54,173.51,3.25]
[1754003203697,3.14,173.56,173.51,3.25]
[1754003203888,5.7633,173.53,173.51,3.25]
[1754003204598,3.14,173.55,173.51,3.25]
[1754003204800,3.14,173.55,173.48,3.25]
[1754003204992,3.14,173.54,173.48,3.25]
[1754003205191,3.14,173.52,173.46,3.25]
[1754003206998,5.7645,173.49,173.46,3.25]
[1754003207297,3.14,173.52,173.46,3.25]
[1754003207999,5.7644,173.5,173.46,5.7655]
[1754003208203,3.14,173.54,173.47,3.25]
[1754003208699,5.7642,173.51,173.47,11.126084]
[1754003209000,5.7642,173.51,173.48,3.25]
[1754003209894,3.14,173.56,173.5,3.25]
[1754003210395,5.7631,173.54,173.52,3.25]
[1754003211404,5.7626,173.55,173.52,3.25]
[1754003211699,3.14,173.56,173.52,3.25]
[1754003211899,5.7626,173.55,173.52,3.25]
[1754003212491,5.7622,173.56,173.53,3.25]
[1754003212696,3.14,173.6,173.54,3.25]
[1754003213201,5.7621,173.57,173.54,3.25]
[1754003213602,5.7623,173.56,173.53,11.123984]
[1754003213901,5.7623,173.56,173.55,3.25]
[1754003214499,8.9023,173.56,173.55,3.25]
[1754003214699,3.14,173.55,173.52,3.25]
[1754003214899,3.14,173.53,173.52,3.25]
[1754003215298,3.14,173.53,173.48,3.25]
[1754003215498,5.360884,173.56,173.48,3.25]
[1754003215692,5.360884,173.56,173.47,5.360884]
[1754003215902,3.14,173.55,173.48,3.25]
[1754003216096,3.14,173.55,173.49,3.25]
[1754003216495,5.7642,173.5,173.49,3.25]
[1754003217199,8.9042,173.5,173.47,3.25]
[1754003217396,5.7639,173.51,173.45,5.360884]
[1754003217597,3.14,173.54,173.5,3.25]
[1754003218201,3.14,173.54,173.51,3.25]
[1754003218399,3.13,173.57,173.48,3.24]
[1754003218797,3.13,173.57,173.52,3.24]
[1754003219098,11.5201,173.63,173.53,5.360884]
[1754003219099,3.13,173.6,173.53,5.360884]
[1754003219305,3.13,173.6,173.54,3.24]
[1754003219901,5.7617,173.58,173.57,3.24]
[1754003220102,3.13,173.62,173.57,3.24]
[1754003220304,3.13,173.64,173.57,5.360884]
[1754003220505,3.13,173.64,173.58,3.24]
[1754003221406,3.13,173.64,173.6,3.24]
[1754003221603,3.13,173.66,173.6,3.24]
[1754003222002,5.7598,173.64,173.61,5.7604]
[1754003222205,3.13,173.66,173.62,3.24]
[1754003222402,3.13,173.68,173.63,5.360884]
[1754003222811,3.13,173.68,173.66,3.24]
[1754003223008,5.7585,173.67,173.66,3.24]
[1754003226809,5.7595,173.64,173.63,5.360884]
[1754003227010,3.13,173.67,173.61,5.360884]
[1754003227509,3.13,173.67,173.63,3.24]
[1754003227709,3.13,173.66,173.65,3.24]
[1754003228310,8.8889,173.66,173.65,3.24]
[1754003229313,5.7589,173.66,173.63,3.24]
[1754003229613,5.7589,173.66,173.64,3.24]
[1754003229910,3.13,173.71,173.62,3.24]
[1754003230412,5.360884,173.68,173.59,5.360884]
[1754003230714,3.13,173.67,173.58,3.24]
[1754003231114,5.7602,173.62,173.59,3.24]
[1754003231507,3.13,173.64,173.59,3.24]
[1754003231706,3.13,173.64,173.57,11.122584]
[1754003231913,3.13,173.64,173.6,3.24]
[1754003232108,5.7604,173.62,173.6,3.24]
[1754003232416,5.7604,173.62,173.61,3.24]
[1754003233104,3.13,173.66,173.6,3.24]
[1754003233513,3.13,173.68,173.62,3.24]
[1754003233813,5.7591,173.66,173.62,9.0002]
[1754003234014,3.13,173.71,173.62,3.24]
[1754003234221,3.13,173.69,173.62,3.24]
[1754003234410,5.7595,173.65,173.62,3.24]
[1754003234611,5.7595,173.65,173.64,3.24]
[1754003235114,5.759,173.66,173.64,3.24]
[1754003235311,3.13,173.71,173.65,3.24]
[1754003235616,3.13,173.69,173.62,3.24]
[1754003236112,5.7589,173.66,173.64,3.24]
[1754003236312,5.7589,173.66,173.65,3.24]
[1754003237018,5.7594,173.65,173.61,11.121384]
[1754003237318,5.7594,173.65,173.63,3.24]
[1754003237319,8.8894,173.65,173.63,3.24]
[1754003237506,3.13,173.67,173.59,5.360884]
[1754003237710,8.8899,173.63,173.61,3.24]
[1754003237912,3.13,173.67,173.62,3.24]
[1754003238111,5.7598,173.64,173.62,3.24]
[1754003238307,3.13,173.63,173.62,3.24]
[1754003238918,8.8902,173.63,173.59,5.761]
[1754003239219,3.13,173.63,173.61,3.24]
[1754003239618,3.13,173.62,173.61,3.24]
[1754003239815,8.8903,173.62,173.59,3.24]
[1754003240022,3.13,173.62,173.6,3.24]
[1754003240219,3.13,173.62,173.61,3.24]
[1754003240918,3.13,173.63,173.61,3.24]
[1754003241422,8.8901,173.63,173.62,3.24]
[1754003241719,10.18591576,173.68,173.6,5.7608]
[1754003241911,5.7599,173.63,173.6,5.7608]
[1754003242545,5.7603,173.62,173.61,3.24]
[1754003243023,5.76,173.63,173.6,5.7608]
[1754003243223,5.76,173.63,173.62,3.24]
[1754003245618,3.13,173.67,173.62,3.24]
[1754003245810,3.13,173.65,173.63,3.24]
[1754003246516,3.13,173.65,173.64,3.24]
[1754003246717,5.7594,173.65,173.64,3.24]
[1754003247722,3.13,173.72,173.65,3.24]
[1754003247918,7.20907497,173.71,173.65,3.24]
[1754003248115,3.13,173.69,173.65,3.24]
[1754003248315,3.25,173.67,173.65,3.24]
[1754003248527,3.25,173.67,173.66,3.26]
[1754003249224,5.7579,173.69,173.66,3.26]
[1754003249423,4.82503176,173.74,173.64,5.360884]
[1754003249627,3.25,173.72,173.65,3.26]
[1754003250323,9.0077,173.7,173.67,5.7584]
[1754003250518,3.25,173.7,173.69,3.26]
[1754003250723,9.0081,173.69,173.67,3.26]
[1754003250920,3.25,173.69,173.68,3.26]
[1754003251224,10.18591576,173.75,173.65,3.26]
[1754003251225,3.25,173.72,173.65,3.26]
[1754003251427,3.25,173.69,173.65,3.26]
[1754003251627,3.25,173.71,173.65,3.26]
[1754003252022,5.7579,173.7,173.66,5.7587]
[1754003252327,3.25,173.7,173.66,5.7587]
[1754003252527,3.25,173.69,173.68,3.26]
[1754003252923,3.25,173.74,173.67,3.26]
[1754003253121,3.25,173.72,173.67,3.26]
[1754003253325,5.7581,173.69,173.68,3.26]
[1754003253528,9.0081,173.69,173.68,3.26]
[1754003254029,5.7581,173.69,173.68,3.26]
[1754003254228,3.25,173.69,173.68,3.26]
[1754003254525,3.25,173.74,173.68,5.758]
[1754003254721,3.25,173.72,173.69,3.26]
[1754003254918,3.25,173.7,173.68,3.26]
[1754003255424,3.61020225,173.75,173.61,47.61020225]
[1754003255425,3.25,173.75,173.71,3.26]
[1754003255727,3.25,173.72,173.71,3.26]
[1754003256924,9.0069,173.72,173.71,3.26]
[1754003257330,3.61020225,173.76,173.69,3.26]
[1754003257528,9.0075,173.7,173.69,3.26]
[1754003257928,3.61020225,173.74,173.61,110.69020225]
[1754003257929,3.25,173.73,173.66,3.26]
[1754003258131,5.7581,173.69,173.66,5.7589]
[1754003258329,9.0081,173.69,173.67,3.26]
[1754003258625,3.25,173.73,173.67,5.7585]
[1754003258820,3.61020225,173.74,173.68,3.26]
[1754003258821,3.25,173.72,173.68,3.26]
[1754003259028,3.25,173.74,173.7,3.26]
[1754003259225,3.25,173.73,173.7,3.26]
[1754003259427,3.61020225,173.78,173.7,3.26]
[1754003259625,3.25,173.74,173.7,3.26]
[1754003259829,5.7567,173.73,173.7,3.26]
[1754003260430,5.7567,173.73,173.7,9.0174]
[1754003260729,5.7563,173.74,173.72,3.26]
[1754003260930,112.42685109,173.8,173.74,3.26]
[1754003260931,4.82503176,173.8,173.74,3.26]
[1754003261132,3.25,173.77,173.74,5.34685109]
[1754003261336,3.25,173.77,173.76,3.26]
[1754003261524,13.11130511,173.77,173.76,3.26]
[1754003261730,9.0052,173.77,173.76,3.26]
[1754003262237,13.11277654,173.77,173.76,3.26]
[1754003262541,13.11277654,173.77,173.74,3.26]
[1754003262542,5.756,173.75,173.74,3.26]
[1754003262926,10.17188285,173.81,173.72,8.60685109]
[1754003263234,3.25,173.73,173.72,3.26]
[1754003264034,3.25,173.73,173.69,5.7578]
[1754003264233,3.25,173.72,173.71,3.26]
[1754003264534,9.0071,173.72,173.71,3.26]
[1754003265332,5.7566,173.73,173.71,3.26]
[1754003265537,3.25,173.78,173.71,3.26]
[1754003265730,7.35856718,173.77,173.71,3.26]
[1754003265927,5.7564,173.74,173.71,9.017]
[1754003266135,5.7564,173.74,173.73,3.26]
[1754003266548,9.0061,173.75,173.74,3.26]
[1754003267841,5.7566,173.73,173.71,5.7571]
[1754003268144,9.0066,173.73,173.72,3.26]
[1754003268441,3.25,173.73,173.72,3.26]
[1754003268638,3.25,173.73,173.7,8.60685109]
[1754003268841,3.25,173.73,173.72,3.26]
[1754003269038,9.0067,173.73,173.72,3.26]
[1754003269634,5.7576,173.7,173.68,11.10495109]
[1754003269840,9.0076,173.7,173.66,5.34685109]